bitfinex-derivatives/quotes_ETHF0:USTF0_20250214
["timestamp","ask_amount","ask_price","bid_price","bid_amount"]
[1739531175772,41.54038,2700.9,2700.8,0.55593246]
[1739531178182,43.13338,2700.9,2700.8,0.55593246]
[1739531178386,41.54038,2700.9,2700.8,1.29634246]
[1739531178572,40.8,2700.9,2700.8,1.29634246]
[1739531178779,40.8,2700.9,2700.8,0.55593246]
[1739531178976,40.8,2700.9,2700.8,1.29634246]
[1739531179278,0.74037,2701.0,2700.8,1.29634246]
[1739531179482,4.80634672,2701.1,2700.8,1.29634246]
[1739531179483,0.74038,2700.9,2700.8,0.55593246]
[1739531179683,4.80634672,2701.1,2700.8,0.55593246]
[1739531179876,0.74035,2701.0,2700.8,1.29633246]
[1739531180076,40.8,2700.9,2700.8,1.29633246]
[1739531181784,40.8,2700.9,2700.8,4.50413246]
[1739531182582,40.8,2700.9,2700.8,10.50413246]
[1739531182781,40.8,2700.9,2700.8,3.76373246]
[1739531182980,40.8,2700.9,2700.8,0.55593246]
[1739531183377,41.54038,2700.9,2700.8,0.55593246]
[1739531183684,40.8,2700.9,2700.8,0.55593246]
[1739531183882,41.54038,2700.9,2700.8,0.55593246]
[1739531184484,41.54038,2700.9,2700.6,1.1621]
[1739531184485,0.74043,2700.7,2700.6,1.1621]
[1739531184786,0.74043,2700.7,2700.6,1.7385]
[1739531185486,41.54043,2700.7,2700.6,1.7385]
[1739531185688,0.7405,2700.5,2700.3,1.1516]
[1739531185888,40.8,2700.7,2700.3,1.728]
[1739531186089,0.74047,2700.6,2700.3,1.728]
[1739531186291,0.74049,2700.5,2700.3,1.728]
[1739531186491,0.74047,2700.6,2700.3,2.46854]
[1739531187089,0.74047,2700.6,2700.3,1.728]
[1739531187290,0.74047,2700.6,2700.3,2.46854]
[1739531187787,40.8,2700.7,2700.3,1.1533]
[1739531187988,0.74052,2700.4,2700.3,0.5764]
[1739531188192,0.74061,2700.1,2699.9,4.3386]
[1739531188392,3.2078,2700.5,2699.9,4.937]
[1739531188599,40.8,2700.0,2699.9,4.937]
[1739531188794,40.8,2700.0,2699.9,5.67765]
[1739531189188,40.8,2700.0,2699.9,4.937]
[1739531190394,40.8,2700.0,2699.9,5.67765]
[1739531192493,40.8,2700.0,2699.9,6.24407702]
[1739531194096,40.8,2700.0,2699.9,6.24465613]
[1739531195998,40.8,2700.0,2699.9,6.24583375]
[1739531197597,40.8,2700.0,2699.9,4.95128375]
[1739531197988,40.8,2700.0,2699.9,4.95181338]
[1739531198387,40.8,2700.0,2699.9,1.74401338]
[1739531198695,40.8,2700.0,2699.8,0.74067]
[1739531198892,3.2078,2700.2,2699.7,1.1833]
[1739531199195,3.2078,2700.2,2699.8,0.56878955]
[1739531199394,40.8,2699.9,2699.8,0.74067]
[1739531199590,40.8,2699.9,2699.8,0.56875048]
[1739531200398,40.8,2699.9,2699.8,1.30943048]
[1739531201798,40.8,2699.9,2699.8,1.30933548]
[1739531204198,40.8,2699.9,2699.8,0.56865548]
[1739531204698,41.54065,2699.9,2699.8,0.56865548]
[1739531205000,41.54065,2699.9,2699.7,1.1833]
[1739531205188,0.74067,2699.9,2699.7,1.1833]
[1739531205398,5.64736,2700.2,2699.7,1.1833]
[1739531205603,40.8,2699.8,2699.7,1.1833]
[1739531205803,40.8,2699.8,2699.7,1.75182704]
[1739531206107,40.8,2699.8,2699.6,3.2078]
[1739531206108,0.74071,2699.7,2699.6,3.2078]
[1739531206304,0.5823,2699.8,2699.6,3.77633067]
[1739531206504,0.74071,2699.7,2699.6,3.2078]
[1739531206700,0.74074,2699.6,2699.4,1.1533]
[1739531206897,0.74074,2699.6,2699.5,0.56847982]
[1739531207098,0.7409,2699.0,2698.7,0.5819]
[1739531207405,0.74092,2699.0,2698.8,3.2078]
[1739531207603,40.8,2698.9,2698.8,3.2078]
[1739531208409,40.8,2698.9,2698.8,3.94875]
[1739531208606,40.8,2698.9,2698.7,1.32287]
[1739531209002,40.8,2698.9,2698.5,3.2078]
[1739531209204,43.03742742,2698.9,2698.2,3.2078]
[1739531209410,46.24522742,2698.9,2698.2,3.2078]
[1739531209601,46.98617742,2698.9,2698.4,0.74105]
[1739531210105,46.24522742,2698.9,2698.2,3.7584]
[1739531210405,5.44522742,2698.6,2697.9,3.2078]
[1739531210600,2.1845,2698.5,2697.9,3.2078]
[1739531210805,2.97852742,2698.3,2697.9,3.2078]
[1739531211199,2.97852742,2698.3,2697.6,23.34607]
[1739531211200,0.74114,2698.2,2697.6,23.34607]
[1739531211398,6.18632742,2698.3,2697.7,0.74124]
[1739531211603,5.44522742,2698.3,2697.9,0.7412]
[1739531211799,6.18631742,2698.3,2697.8,1.30322]
[1739531212204,5.44522742,2698.3,2697.9,0.74118]
[1739531212405,5.44522742,2698.3,2697.8,0.562]
[1739531212703,5.44522742,2698.3,2697.9,0.74119]
[1739531213010,3.2078,2698.3,2698.0,0.74116]
[1739531213210,2.92756,2698.5,2698.0,0.74117]
[1739531213708,40.8,2698.1,2698.0,0.74117]
[1739531214108,40.8,2698.1,2698.0,2.97859742]
[1739531214305,2.23742742,2699.5,2698.0,8.80329771]
[1739531214509,3.2078,2699.6,2699.0,6.18612742]
[1739531214710,40.80555741,2699.1,2699.0,6.18612742]
[1739531215308,40.80555741,2699.1,2699.0,3.9487]
[1739531215811,40.80555741,2699.1,2699.0,6.18612742]
[1739531216606,40.80555741,2699.1,2699.0,3.9487]
[1739531217008,40.80555741,2699.1,2699.0,5.5827]
[1739531218802,40.80555741,2699.1,2699.0,7.82012742]
[1739531219516,40.80555741,2699.1,2699.0,13.82012742]
[1739531219715,40.80555741,2699.1,2699.0,14.38630819]
[1739531219908,2.81252742,2700.1,2699.9,0.74064]
[1739531219909,0.5751,2700.1,2699.9,0.74064]
[1739531220215,0.5751,2700.1,2699.7,3.2078]
[1739531220613,0.5751,2700.1,2700.0,0.74062]
[1739531220807,3.2078,2700.4,2700.0,3.2078]
[1739531221207,3.2078,2700.4,2700.0,3.94841]
[1739531221407,40.8,2700.1,2700.0,3.94841]
[1739531225821,40.8,2700.1,2700.0,4.49381]
[1739531228725,40.8,2700.1,2700.0,3.94842]
[1739531230514,40.8,2700.1,2700.0,4.54002]
[1739531232332,40.8,2700.1,2700.0,3.94842]
[1739531233132,40.8,2700.1,2700.0,3.2078]
[1739531233642,40.8,2700.1,2700.0,3.94842]
[1739531236938,40.8,2700.1,2700.0,6.18584742]
[1739531237538,40.8,2700.1,2700.0,6.74474742]
[1739531238842,40.8,2700.1,2700.0,7.28934742]
[1739531240040,40.8,2700.1,2700.0,13.28934742]
[1739531240235,40.8,2700.1,2700.0,7.28934742]
[1739531241442,40.8,2700.1,2700.0,4.49302]
[1739531241642,40.8,2700.1,2700.0,3.2078]
[1739531241843,40.8,2700.1,2700.0,3.94842]
[1739531242543,40.8,2700.1,2700.0,6.18584742]
[1739531242736,40.8,2700.1,2700.0,3.94842]
[1739531243342,40.8,2700.1,2700.0,3.2078]
[1739531243854,40.8,2700.1,2700.0,3.94842]
[1739531244147,40.8,2700.1,2700.0,3.2078]
[1739531245346,41.54061,2700.1,2699.9,0.00555741]
[1739531245540,0.74061,2700.1,2699.9,0.00555741]
[1739531245747,1.1351,2700.3,2699.9,0.00555741]
[1739531245947,40.8,2700.0,2699.9,0.74620741]
[1739531246750,40.8,2700.0,2699.9,1.3150713]
[1739531254154,40.8,2700.0,2699.9,1.31626258]
[1739531255450,40.8,2700.0,2699.9,1.31627927]
[1739531257351,40.8,2700.0,2699.9,0.74620741]
[1739531257558,40.8,2700.0,2699.9,1.31626023]
[1739531259354,40.8,2700.0,2699.9,1.31626572]
[1739531261564,40.8,2700.0,2699.9,1.31625658]
[1739531263357,40.8,2700.0,2699.9,1.31626421]
[1739531265259,40.8,2700.0,2699.9,1.31629469]
[1739531267966,40.8,2700.0,2699.9,7.31629469]
[1739531269261,40.8,2700.0,2699.9,1.31612623]
[1739531269771,40.8,2700.0,2699.9,1.31612695]
[1739531270869,40.8,2700.0,2699.9,2.93312695]
[1739531271261,40.8,2700.0,2699.9,2.93309809]
[1739531273066,40.8,2700.0,2699.9,2.93306414]
[1739531275169,40.8,2700.0,2699.9,2.36320741]
[1739531275468,40.8,2700.0,2699.9,2.93310079]
[1739531282268,40.8,2700.0,2699.9,2.93323179]
[1739531284070,40.8,2700.0,2699.9,2.92523179]
[1739531284273,40.8,2700.0,2699.9,2.92525763]
[1739531285263,40.8,2700.0,2699.9,0.57560763]
[1739531285568,40.8,2700.0,2699.9,2.92425763]
[1739531285765,40.8,2700.0,2699.9,1.31625763]
[1739531286268,40.8,2700.0,2699.9,1.31632724]
[1739531286864,40.8,2700.0,2699.9,0.57567724]
[1739531287267,41.54062,2700.0,2699.9,0.00555741]
[1739531287463,0.74071,2699.7,2699.5,1.608]
[1739531287668,0.543,2699.6,2699.4,22.6028]
[1739531287878,0.74078,2699.5,2699.1,3.2078]
[1739531288073,0.5688,2699.4,2699.2,0.56997821]
[1739531288373,0.5688,2699.4,2699.1,3.2078]
[1739531288574,40.8,2699.2,2699.1,3.2078]
[1739531290677,40.8,2699.2,2699.1,3.94867]
[1739531290977,40.8,2699.2,2699.1,3.2078]
[1739531292874,40.8,2699.2,2699.1,3.94867]
[1739531293478,40.8,2699.2,2699.1,3.2078]
[1739531294275,40.8,2699.2,2699.1,3.94867]
[1739531296074,40.8,2699.2,2699.1,3.2078]
[1739531296678,40.8,2699.2,2699.1,3.94867]
[1739531298182,40.8,2699.2,2699.1,4.50537]
[1739531298684,40.8,2699.2,2699.1,6.74279742]
[1739531300084,40.8,2699.2,2699.1,3.2078]
[1739531300276,43.03742742,2699.2,2698.7,3.2078]
[1739531300480,0.5971,2699.1,2698.7,3.2078]
[1739531300688,0.74097,2698.8,2698.3,3.2078]
[1739531300980,0.5971,2699.1,2698.3,3.2078]
[1739531300981,40.8,2698.4,2698.3,3.2078]
[1739531302376,40.8,2698.4,2698.3,3.94889]
[1739531302886,40.8,2698.4,2698.3,4.51079]
[1739531303886,40.8,2698.4,2698.3,5.05669]
[1739531309182,40.8,2698.4,2698.3,5.62344263]
[1739531309387,40.8,2698.4,2698.3,5.05669]
[1739531309592,40.8,2698.4,2698.3,5.62347294]
[1739531310585,40.8,2698.4,2698.3,5.05669]
[1739531312087,40.8,2698.4,2698.3,5.62374244]
[1739531314390,40.8,2698.4,2698.3,6.68884244]
[1739531315295,40.8,2698.4,2698.3,5.07907055]
[1739531319790,40.8,2698.4,2698.3,5.079646]
[1739531321310,40.8,2698.4,2698.3,5.07963776]
[1739531323207,40.8,2698.4,2698.3,5.07975016]
[1739531326309,40.8,2698.4,2698.3,4.33866016]
[1739531326516,40.8,2698.4,2698.3,6.68775016]
[1739531326714,40.8,2698.4,2698.3,6.12585016]
[1739531326919,40.8,2698.4,2698.3,6.12615494]
[1739531328408,40.8,2698.4,2698.3,3.77706494]
[1739531329024,40.8,2698.4,2698.3,3.77732802]
[1739531329319,40.8,2698.4,2698.3,3.2078]
[1739531329514,42.46,2698.4,2698.3,3.2078]
[1739531329713,41.9176,2698.4,2698.3,3.77765053]
[1739531329922,41.3476,2698.4,2698.3,4.51874053]
[1739531330119,41.3476,2698.4,2698.3,3.77765053]
[1739531331011,41.3476,2698.4,2698.3,4.51874053]
[1739531331415,41.3476,2698.4,2698.3,5.10232622]
[1739531332820,41.3476,2698.4,2698.3,5.10234877]
[1739531333121,41.3476,2698.4,2698.3,6.71234877]
[1739531333816,40.8,2698.4,2698.3,6.71234877]
[1739531334817,0.5943,2698.8,2698.3,6.71234877]
[1739531334818,0.58445741,2699.2,2698.3,5.97125877]
[1739531335021,0.5433,2699.1,2699.0,0.7409]
[1739531335226,0.5433,2699.1,2699.0,4.51855877]
[1739531335525,0.5433,2699.1,2699.0,4.51833412]
[1739531335822,41.3433,2699.1,2699.0,4.51833412]
[1739531337026,40.8,2699.1,2699.0,6.75576154]
[1739531338827,40.8,2699.1,2699.0,6.7551338]
[1739531339120,40.8,2699.1,2699.0,4.51770638]
[1739531339524,41.3432,2699.1,2699.0,4.51770638]
[1739531339914,41.3432,2699.1,2699.0,3.77680638]
[1739531340320,41.3432,2699.1,2699.0,0.56900638]
[1739531340519,41.3432,2699.1,2698.8,1.614]
[1739531340729,0.5418,2699.0,2698.8,1.614]
[1739531340922,0.5418,2699.0,2698.9,0.74093]
[1739531341333,41.3418,2699.0,2698.9,0.74093]
[1739531341532,41.3418,2699.0,2698.9,1.30980085]
[1739531342030,41.3418,2699.0,2698.9,1.30979403]
[1739531342432,40.8,2699.0,2698.9,1.30979403]
[1739531344229,40.8,2699.0,2698.9,0.56886403]
[1739531344436,40.8,2699.0,2698.9,2.18386403]
[1739531344627,40.8,2699.0,2698.9,1.615]
[1739531344927,40.8,2699.0,2698.9,2.35593]
[1739531345323,40.8,2699.0,2698.9,1.615]
[1739531345926,40.8,2699.0,2698.9,2.35593]
[1739531346128,40.8,2699.0,2698.9,2.92445859]
[1739531346333,3.2078,2701.1,2698.9,8.18352859]
[1739531346524,3.2078,2701.1,2700.5,0.74047]
[1739531346525,4.3598,2701.1,2700.5,0.74047]
[1739531346727,4.3598,2701.1,2700.4,0.7405]
[1739531346728,40.8,2700.7,2700.4,0.7405]
[1739531347130,40.8,2700.7,2700.3,5.44522742]
[1739531347334,40.8,2700.7,2700.4,0.7405]
[1739531347729,40.8,2700.7,2700.3,5.44522742]
[1739531347929,40.8,2700.7,2700.4,0.7405]
[1739531348126,40.8,2700.7,2700.4,0.74052]
[1739531351030,40.8,2700.7,2700.5,0.74048]
[1739531351234,40.8,2700.7,2700.3,5.44522742]
[1739531351437,0.5485,2700.6,2700.3,6.18575742]
[1739531351735,0.5485,2700.6,2700.4,0.74051]
[1739531352136,0.5485,2700.6,2700.3,3.2078]
[1739531352340,40.8,2700.4,2700.3,4.8368]
[1739531352537,40.8,2700.4,2700.3,5.57734]
[1739531352743,40.8,2700.4,2700.3,3.94834]
[1739531352940,40.8,2700.4,2700.3,6.18576742]
[1739531353243,40.8,2700.4,2700.3,6.74456742]
[1739531355444,40.8,2700.4,2700.3,5.44522742]
[1739531355639,40.8,2700.4,2700.3,3.2078]
[1739531357044,41.918,2700.4,2700.3,3.2078]
[1739531360039,53.36322742,2700.4,2700.2,0.00555741]
[1739531360241,0.74066,2699.9,2699.5,0.74075]
[1739531360542,1.30819,2699.8,2699.4,0.74078]
[1739531360743,40.8,2699.5,2699.4,0.74078]
[1739531362538,40.8,2699.5,2699.4,0.5832]
[1739531363941,40.8,2699.5,2699.4,2.82062742]
[1739531364247,40.8,2699.5,2699.4,3.56141742]
[1739531364745,40.8,2699.5,2699.4,4.70042712]
[1739531365336,40.8,2699.5,2699.4,4.70047113]
[1739531365838,0.5653,2700.3,2699.9,0.74064]
[1739531366040,0.5653,2700.3,2700.0,1.1442]
[1739531366845,40.8,2700.1,2700.0,1.1442]
[1739531367847,41.54061,2700.1,2699.8,3.2078]
[1739531368243,40.8,2700.1,2699.8,3.2078]
[1739531368452,0.5369,2700.0,2699.6,4.60613742]
[1739531368747,0.5369,2700.0,2699.7,0.74071]
[1739531369049,0.5369,2700.0,2699.6,3.86542742]
[1739531369246,1.27754,2700.0,2699.6,2.23742742]
[1739531369548,1.27754,2700.0,2699.6,2.97815742]
[1739531369943,0.5369,2700.0,2699.5,4.8348]
[1739531370142,0.5369,2700.0,2699.8,0.74067]
[1739531370445,0.5369,2700.0,2699.7,0.7407]
[1739531371147,0.5369,2700.0,2699.5,4.8348]
[1739531371351,0.5369,2700.0,2699.8,0.74068]
[1739531371746,40.8,2700.1,2699.9,3.2078]
[1739531372046,0.5653,2700.3,2700.2,0.74057]
[1739531372441,41.3653,2700.3,2700.2,0.74057]
[1739531372842,40.8,2700.3,2700.2,0.74057]
[1739531375944,40.8,2700.3,2700.0,0.5423]
[1739531376143,40.8,2700.3,2700.1,0.74059]
[1739531376343,40.8,2700.3,2700.0,2.91291]
[1739531377038,40.8,2700.3,2700.0,2.1723]
[1739531377238,40.8,2700.3,2700.0,0.5423]
[1739531377450,0.74053,2700.4,2700.0,1.28292]
[1739531377650,0.5365,2700.3,2700.0,1.28292]
[1739531377949,40.8,2700.1,2700.0,1.28292]
[1739531380148,40.8,2700.1,2700.0,0.5423]
[1739531381946,0.74063,2700.0,2699.8,0.5821]
[1739531382349,40.8,2700.1,2699.8,0.5821]
[1739531382549,41.54061,2700.1,2699.8,3.7899]
[1739531382955,0.74061,2700.1,2699.8,3.7899]
[1739531383350,40.8,2699.9,2699.8,0.5821]
[1739531383549,41.54065,2699.9,2699.8,0.5821]
[1739531383752,40.8,2699.9,2699.6,2.2129]
[1739531383952,41.54067,2699.9,2699.6,2.2139]
[1739531385047,41.54065,2699.9,2699.6,2.95462]
[1739531385251,41.54065,2699.9,2699.6,2.2139]
[1739531385855,40.8,2699.9,2699.6,0.5869]
[1739531386053,41.54067,2699.9,2699.6,0.5869]
[1739531386458,0.74068,2699.8,2699.6,0.5869]
[1739531386954,41.54066,2699.9,2699.6,1.32762]
[1739531387358,0.74069,2699.8,2699.6,0.5869]
[1739531387657,0.74068,2699.8,2699.6,0.5869]
[1739531387865,42.07737,2699.9,2699.6,1.32763]
[1739531388053,41.3367,2699.9,2699.6,0.5869]
[1739531388357,0.5367,2699.9,2699.6,0.5869]
[1739531388851,40.8,2699.7,2699.6,1.32762]
[1739531389052,40.8,2699.7,2699.6,1.15618236]
[1739531391158,40.8,2699.7,2699.6,1.15623449]
[1739531392062,41.54071,2699.7,2699.6,1.15623449]
[1739531392465,40.8,2699.7,2699.6,1.15623449]
[1739531392660,40.8,2699.7,2699.6,1.15629643]
[1739531393452,40.8,2699.7,2699.6,1.89702643]
[1739531393656,40.8,2699.7,2699.6,1.15629643]
[1739531394056,40.8,2699.7,2699.6,0.5869]
[1739531396752,41.54071,2699.7,2699.6,0.5869]
[1739531396952,40.8,2699.7,2699.6,0.5869]
[1739531397552,41.54071,2699.7,2699.6,0.5869]
[1739531397758,40.8,2699.7,2699.6,0.5869]
[1739531397962,41.54071,2699.7,2699.6,0.5869]
[1739531399265,40.8,2699.7,2699.3,0.5387]
[1739531399559,0.5368,2699.6,2699.2,3.8053]
[1739531399758,0.74081,2699.4,2699.2,3.8053]
[1739531399958,41.54082,2699.3,2699.2,3.8053]
[1739531400555,40.8,2699.3,2699.0,0.5547]
[1739531400761,0.74086,2699.2,2699.0,0.5547]
[1739531401363,40.8,2699.3,2699.2,0.74084]
[1739531401562,40.8,2699.3,2699.2,3.5474796]
[1739531401964,40.8,2699.3,2699.2,3.54745292]
[1739531402667,40.8,2699.3,2699.1,3.2078]
[1739531403062,41.54082,2699.3,2699.1,3.2078]
[1739531403765,40.8,2699.3,2699.1,3.2078]
[1739531403970,40.8,2699.3,2699.2,0.56907384]
[1739531404160,40.8,2699.3,2699.2,1.30991384]
[1739531404362,40.8,2699.3,2699.2,1.30992882]
[1739531404771,40.8,2699.3,2699.2,3.54735624]
[1739531405864,40.8,2699.3,2699.2,3.54741391]
[1739531407871,40.8,2699.3,2699.2,3.54757047]
[1739531408074,40.8,2699.3,2699.2,9.54757047]
[1739531409764,40.8,2699.3,2699.2,9.54769976]
[1739531411670,0.00555741,2699.4,2699.2,8.80699955]
[1739531411871,1.1164,2700.5,2700.1,0.74058]
[1739531412170,3.2078,2700.6,2700.3,0.74053]
[1739531412670,3.2078,2701.0,2700.5,0.74047]
[1739531412867,3.2078,2701.0,2700.5,2.23742742]
[1739531413073,3.21335741,2701.0,2700.5,2.98346483]
[1739531413271,0.00555741,2701.0,2700.9,6.18560742]
[1739531413474,0.00555741,2701.0,2700.9,8.38561253]
[1739531413677,40.80555741,2701.0,2700.9,8.38561253]
[1739531415576,40.80555741,2701.0,2700.9,8.38392238]
[1739531418272,40.80555741,2701.0,2700.9,14.38392238]
[1739531418977,3.754,2702.1,2700.9,15.8809698]
[1739531419180,3.754,2702.1,2701.8,2.23742742]
[1739531419677,3.754,2702.1,2701.8,2.97754742]
[1739531419874,40.8,2701.9,2701.8,2.97754742]
[1739531420273,40.8,2701.9,2701.8,2.97755742]
[1739531420473,40.8,2701.9,2701.8,2.23742742]
[1739531422978,40.8,2701.9,2701.8,2.97755742]
[1739531426275,40.8,2701.9,2701.8,2.23742742]
[1739531426579,40.8,2701.9,2701.8,2.97755742]
[1739531429881,40.8,2701.9,2701.8,2.23742742]
[1739531430181,40.8,2701.9,2701.8,2.97755742]
[1739531431677,40.8,2701.9,2701.8,2.23742742]
[1739531431877,40.8,2701.9,2701.8,2.97755742]
[1739531437088,40.8,2701.9,2701.8,3.56565742]
[1739531439390,40.8,2701.9,2701.8,4.13189243]
[1739531439690,40.8,2701.9,2701.8,3.56565742]
[1739531439882,40.8,2701.9,2701.8,4.13189376]
[1739531442984,40.8,2701.9,2701.8,4.1338506]
[1739531446789,40.8,2701.9,2701.8,3.56565742]
[1739531446990,40.8,2701.9,2701.8,4.1347147]
[1739531447491,40.8,2701.9,2701.8,4.13471481]
[1739531448991,40.8,2701.9,2701.8,4.13475721]
[1739531450191,0.586,2702.8,2702.1,0.74005]
[1739531450492,1.0976,2702.9,2702.7,0.73987]
[1739531450493,0.5413,2702.9,2702.7,0.73987]
[1739531450692,0.5413,2702.9,2702.7,2.35087]
[1739531450892,0.5413,2702.9,2702.7,1.611]
[1739531451093,40.8,2702.8,2702.7,1.611]
[1739531451396,40.8,2702.8,2702.7,2.17974851]
[1739531451897,40.8,2702.8,2702.7,2.91962851]
[1739531452288,40.8,2702.8,2702.7,3.49972851]
[1739531454801,40.8,2702.8,2702.7,3.49932124]
[1739531455793,40.8,2702.8,2702.7,3.49921459]
[1739531456796,40.8,2702.8,2702.7,3.49913127]
[1739531458704,40.8,2702.8,2702.7,3.49899889]
[1739531458902,40.8,2702.8,2702.7,6.70679889]
[1739531459404,40.8,2702.8,2702.7,3.49899889]
[1739531459704,40.8,2702.8,2702.7,6.70679889]
[1739531462104,40.8,2702.8,2702.7,6.70676725]
[1739531462701,40.8,2702.8,2702.7,7.26966725]
[1739531463901,40.8,2702.8,2702.7,6.70168]
[1739531464103,40.8,2702.8,2702.7,7.26959097]
[1739531465898,40.8,2702.8,2702.7,7.26955643]
[1739531466502,40.8,2702.8,2702.7,7.26956189]
[1739531468011,40.8,2702.8,2702.7,7.26958066]
[1739531469902,40.8,2702.8,2702.7,7.26970077]
[1739531472411,40.8,2702.8,2702.7,7.27009616]
[1739531473208,3.7476,2703.6,2702.7,7.27009616]
[1739531473209,3.2078,2704.3,2702.7,14.37992616]
[1739531473410,0.5779,2703.9,2703.8,0.73958]
[1739531473602,0.5779,2703.9,2703.8,4.40684358]
[1739531473805,0.5779,2703.9,2703.8,4.4068525]
[1739531474213,0.5779,2703.9,2703.8,5.1464325]
[1739531474505,0.5779,2703.9,2703.8,4.4068525]
[1739531474710,0.5779,2703.9,2703.8,0.56842508]
[1739531475014,0.5779,2703.9,2703.6,2.34063]
[1739531475207,0.5408,2703.8,2703.7,3.77601599]
[1739531475407,41.3408,2703.8,2703.7,3.77601599]
[1739531475914,41.3408,2703.8,2703.7,3.77593095]
[1739531478610,41.34323378,2703.8,2703.7,4.51554095]
[1739531479712,41.34323378,2703.8,2703.7,0.56813095]
[1739531479913,48.08284378,2703.8,2703.4,3.2078]
[1739531480216,41.34323378,2703.8,2703.5,0.73965]
[1739531480420,0.54323378,2703.8,2703.5,0.73965]
[1739531481013,40.8,2703.6,2703.5,0.73965]
[1739531481312,40.8,2703.6,2703.5,0.73967]
[1739531481508,40.8,2703.6,2703.4,3.94748]
[1739531481722,0.588,2703.5,2703.4,0.73969]
[1739531482214,0.588,2703.5,2703.4,1.30810326]
[1739531482521,41.388,2703.5,2703.4,1.30810326]
[1739531483219,41.388,2703.5,2703.4,1.30812824]
[1739531483517,41.388,2703.5,2703.4,0.73969]
[1739531483922,41.388,2703.5,2703.4,1.30815194]
[1739531484320,40.8,2703.5,2703.4,1.30815194]
[1739531484623,40.8,2703.5,2703.4,2.45825194]
[1739531485121,40.8,2703.5,2703.4,1.30815194]
[1739531485627,40.8,2703.5,2703.4,4.51595194]
[1739531488622,0.00243378,2703.8,2703.7,0.73961]
[1739531488811,0.00243378,2703.8,2703.7,8.35029936]
[1739531489421,0.00243378,2703.8,2703.7,7.61075453]
[1739531489724,40.80243378,2703.8,2703.7,7.61075453]
[1739531489919,40.80243378,2703.8,2703.7,8.35036453]
[1739531493429,40.80243378,2703.8,2703.7,8.35037104]
[1739531495214,40.80243378,2703.8,2703.7,8.35036825]
[1739531496923,0.00555741,2704.1,2703.7,7.61075825]
[1739531497118,0.00555741,2704.1,2703.9,0.73955]
[1739531497630,0.00555741,2704.1,2704.0,0.73953]
[1739531498128,40.80555741,2704.1,2704.0,0.73953]
[1739531499426,40.80555741,2704.1,2704.0,1.30818051]
[1739531501023,40.80555741,2704.1,2704.0,1.3082045]
[1739531501630,40.80555741,2704.1,2704.0,1.30825398]
[1739531505026,40.80555741,2704.1,2704.0,1.30841927]
[1739531505426,40.80555741,2704.1,2704.0,3.54584669]
[1739531508937,40.80555741,2704.1,2704.0,3.54574719]
[1739531510936,40.80555741,2704.1,2704.0,3.545763]
[1739531512549,41.54505741,2704.1,2704.0,0.56880558]
[1739531512841,40.80555741,2704.1,2704.0,0.56880558]
[1739531513340,40.80555741,2704.1,2704.0,3.545763]
[1739531515044,40.80555741,2704.1,2704.0,3.54618576]
[1739531515546,40.80555741,2704.1,2704.0,0.56922834]
[1739531515735,40.80555741,2704.1,2704.0,1.30875834]
[1739531515936,40.80555741,2704.1,2704.0,0.73953]
[1739531516146,40.80555741,2704.1,2704.0,1.30885732]
[1739531518453,40.80555741,2704.1,2704.0,0.56932732]
[1739531519148,40.80555741,2704.1,2704.0,1.30885732]
[1739531519350,40.80555741,2704.1,2704.0,0.56932732]
[1739531519753,40.80555741,2704.1,2704.0,1.30885732]
[1739531521650,40.80555741,2704.1,2704.0,2.34296601]
[1739531522250,40.80555741,2704.1,2704.0,2.34333587]
[1739531523755,40.80555741,2704.1,2704.0,1.30922718]
[1739531523954,40.80555741,2704.1,2704.0,0.56969718]
[1739531524155,40.80555741,2704.1,2704.0,0.56973135]
[1739531524848,40.80555741,2704.1,2704.0,1.30926135]
[1739531525047,40.80555741,2704.1,2704.0,0.56973135]
[1739531525650,40.80555741,2704.1,2704.0,1.30926135]
[1739531526045,40.80555741,2704.1,2704.0,0.73953]
[1739531526248,40.80555741,2704.1,2704.0,1.30928867]
[1739531527351,40.80555741,2704.1,2704.0,4.51708867]
[1739531527544,40.80555741,2704.1,2704.0,3.77755867]
[1739531527746,40.80555741,2704.1,2704.0,4.51708867]
[1739531527948,40.80555741,2704.1,2704.0,3.77755867]
[1739531528148,42.5791661,2704.1,2704.0,0.56983464]
[1739531528353,0.73958,2703.8,2703.7,3.2078]
[1739531528549,0.73958,2703.8,2703.7,0.56983041]
[1739531528753,4.24190869,2703.9,2703.4,19.369]
[1739531528951,1.1385,2703.7,2703.5,0.56987333]
[1739531529153,0.5407,2703.7,2703.6,0.56987333]
[1739531529546,41.3407,2703.7,2703.6,1.60398202]
[1739531529850,41.3407,2703.7,2703.6,0.56987333]
[1739531531454,40.8,2703.7,2703.6,0.56987333]
[1739531531657,40.8,2703.7,2703.6,1.30951333]
[1739531531848,40.8,2703.7,2703.6,0.56987333]
[1739531532048,40.8,2703.7,2703.6,0.56661316]
[1739531532253,40.8,2703.7,2703.6,1.15871316]
[1739531533653,40.8,2703.7,2703.6,5.10615316]
[1739531534155,40.8,2703.7,2703.6,7.34757623]
[1739531539759,40.8,2703.7,2703.6,8.945482]
[1739531540563,40.8,2703.7,2703.6,6.607842]
[1739531540756,40.8,2703.7,2703.6,5.96427746]
[1739531541864,40.8,2703.7,2703.6,6.70391746]
[1739531542266,40.8,2703.7,2703.6,5.96428046]
[1739531542761,40.8,2703.7,2703.6,6.70392046]
[1739531543760,40.8,2703.7,2703.6,6.70391136]
[1739531544657,40.8,2703.7,2703.6,8.9454759]
[1739531551575,40.8,2703.7,2703.6,8.94559748]